bitfinex/quotes_SOLUSD_20220128
["timestamp","ask_amount","ask_price","bid_price","bid_amount"]
[1643347377377,16.2642,92.36,92.27,15.62]
[1643347377586,1.50208658,92.354,92.27,15.62]
[1643347377778,1.50208658,92.351,92.27,15.62]
[1643347377978,1.50208658,92.35,92.27,15.62]
[1643347378578,45.012168,92.338,92.27,15.62]
[1643347378818,109.3,92.337,92.27,15.62]
[1643347379380,16.2697,92.33,92.27,15.62]
[1643347379580,109.3,92.329,92.25,15.62]
[1643347379779,133.3017,92.329,92.25,15.62]
[1643347382881,109.3,92.318,92.25,15.62]
[1643347383084,109.3,92.316,92.25,15.62]
[1643347385686,24.3644,92.317,92.25,15.62]
[1643347387687,45.012168,92.338,92.25,15.62]
[1643347387688,1.50208658,92.336,92.251,0.25]
[1643347387886,45.012168,92.338,92.251,0.25]
[1643347388886,45.012168,92.338,92.25,15.62]
[1643347388887,155.81425458,92.338,92.25,15.62]
[1643347389085,1.50208658,92.337,92.251,0.25]
[1643347389286,45.012168,92.338,92.251,0.25]
[1643347390087,6.0,92.328,92.252,2.15024526]
[1643347390287,1.50208658,92.351,92.262,6.0]
[1643347390487,1.50208658,92.36,92.27,15.62]
[1643347390887,1.50208658,92.361,92.271,2.40024526]
[1643347391291,1.50208658,92.361,92.272,2.15024526]
[1643347391488,1.50208658,92.36,92.281,6.0]
[1643347391688,1.50208658,92.36,92.272,2.15024526]
[1643347391689,1.50208658,92.36,92.29,15.62]
[1643347391888,36.3785476,92.363,92.29,15.62]
[1643347391889,1.50208658,92.361,92.291,0.25]
[1643347392091,1.50208658,92.362,92.291,0.25]
[1643347392292,1.50208658,92.363,92.291,0.25]
[1643347392488,1.50208658,92.367,92.291,0.25]
[1643347393091,1.50208658,92.368,92.291,0.25]
[1643347394291,1.50208658,92.369,92.291,0.25]
[1643347394690,1.50208658,92.368,92.29,15.62]
[1643347395093,1.50208658,92.367,92.292,2.15024526]
[1643347395291,1.50208658,92.369,92.292,2.15024526]
[1643347395593,1.50208658,92.373,92.292,2.15024526]
[1643347395790,1.50208658,92.379,92.292,19.50487995]
[1643347395990,1.50208658,92.383,92.292,19.50487995]
[1643347396196,1.50208658,92.383,92.302,6.0]
[1643347396492,1.50208658,92.385,92.31,15.62]
[1643347396694,1.50208658,92.386,92.31,15.62]
[1643347396892,1.50208658,92.387,92.311,0.25]
[1643347397092,1.50208658,92.388,92.311,0.25]
[1643347397293,1.50208658,92.389,92.311,0.25]
[1643347397491,3.00802674,92.408,92.311,0.25]
[1643347397492,1.50208658,92.388,92.311,0.25]
[1643347397693,1.50208658,92.387,92.311,0.25]
[1643347397892,1.50208658,92.388,92.311,0.25]
[1643347398492,1.50208658,92.386,92.311,0.25]
[1643347398896,1.50208658,92.384,92.311,0.25]
[1643347399094,1.50208658,92.388,92.311,0.25]
[1643347399293,1.50208658,92.384,92.311,0.25]
[1643347399493,1.50208658,92.386,92.311,0.25]
[1643347399694,1.50208658,92.385,92.311,0.25]
[1643347399993,3.00646802,92.406,92.311,0.25]
[1643347399994,1.50208658,92.387,92.311,0.25]
[1643347400596,1.50208658,92.385,92.31,15.62]
[1643347400896,1.50208658,92.383,92.31,15.62]
[1643347401317,1.50208658,92.381,92.31,15.62]
[1643347402697,1.50208658,92.382,92.31,15.62]
[1643347402897,37.69192832,92.381,92.31,15.62]
[1643347403098,24.567,92.38,92.31,15.62]
[1643347403299,110.80208658,92.379,92.31,15.62]
[1643347403498,1.50208658,92.378,92.31,15.62]
[1643347403899,1.50208658,92.376,92.31,15.62]
[1643347404102,1.50208658,92.378,92.31,15.62]
[1643347404504,1.50208658,92.376,92.31,15.62]
[1643347404703,1.50208658,92.377,92.31,15.62]
[1643347405109,1.50208658,92.374,92.31,15.62]
[1643347406103,1.50208658,92.372,92.28,15.62]
[1643347406306,109.3,92.379,92.28,15.62]
[1643347406307,1.50208658,92.366,92.283,6.0]
[1643347406503,1.50208658,92.358,92.28,15.62]
[1643347406705,1.50208658,92.354,92.28,15.62]
[1643347406903,109.3,92.352,92.28,15.62]
[1643347407305,110.80208658,92.352,92.28,15.62]
[1643347407505,1.50208658,92.348,92.28,15.62]
[1643347407703,1.50208658,92.349,92.28,15.62]
[1643347407905,1.50208658,92.339,92.222,1.48871908]
[1643347408108,1.50208658,92.335,92.23,15.62]
[1643347408303,1.50208658,92.334,92.23,15.62]
[1643347408503,1.50208658,92.333,92.23,15.62]
[1643347408913,1.50208658,92.332,92.23,15.62]
[1643347409216,1.50208658,92.332,92.24,0.25]
[1643347409912,1.50208658,92.333,92.24,0.25]
[1643347410513,6.0,92.323,92.25,15.62]
[1643347410718,41.1471569,92.322,92.25,15.62]
[1643347411117,41.1471569,92.322,92.251,0.25]
[1643347411918,41.1471569,92.322,92.25,15.62]
[1643347412919,41.1471569,92.322,92.251,0.25]
[1643347413724,41.1471569,92.322,92.25,15.62]
[1643347417035,22.9636,92.338,92.25,15.62]
[1643347417434,22.9636,92.338,92.251,0.25]
[1643347417635,6.0,92.328,92.251,2.40024526]
[1643347417835,1.50208658,92.342,92.251,0.25]
[1643347418037,1.50208658,92.348,92.252,2.15024526]
[1643347418336,1.50208658,92.357,92.253,0.25]
[1643347418537,81.79013106,92.409,92.253,0.25]
[1643347418538,1.50208658,92.363,92.262,6.0]
[1643347418836,1.50208658,92.367,92.29,195.2]
[1643347419037,129.3995,92.46,92.31,195.2]
[1643347419038,1.50208658,92.381,92.31,195.2]
[1643347419339,1.50208658,92.387,92.32,15.62]
[1643347419635,36.84815845,92.42,92.321,22.9325]
[1643347419636,1.50208658,92.392,92.321,22.9325]
[1643347419834,1.50208658,92.396,92.321,25.33274526]
[1643347420046,1.50208658,92.394,92.331,6.0]
[1643347420436,1.50208658,92.395,92.34,15.62]
[1643347420837,1.50208658,92.398,92.341,0.25]
[1643347421036,1.50208658,92.412,92.35,6.0]
[1643347421236,1.50208658,92.417,92.36,15.62]
[1643347421438,1.50208658,92.418,92.36,15.62]
[1643347421640,1.50208658,92.418,92.37,6.0]
[1643347421841,1.50208658,92.426,92.37,21.62]
[1643347422137,1.50208658,92.428,92.37,21.62]
[1643347422340,1.50208658,92.429,92.37,21.62]
[1643347422639,1.50208658,92.428,92.37,21.62]
[1643347423039,1.50208658,92.43,92.37,21.62]
[1643347423440,1.50208658,92.431,92.37,21.62]
[1643347423641,1.50208658,92.431,92.37,15.62]
[1643347423842,1.50208658,92.429,92.37,15.62]
[1643347424142,1.50208658,92.428,92.37,15.62]
[1643347424347,1.50208658,92.426,92.37,15.62]
[1643347424941,1.50208658,92.427,92.37,15.62]
[1643347425143,1.50208658,92.426,92.37,15.62]
[1643347425942,1.50208658,92.427,92.37,15.62]
[1643347426545,1.50208658,92.43,92.37,15.62]
[1643347426948,1.50208658,92.432,92.37,15.62]
[1643347427348,1.50208658,92.431,92.37,15.62]
[1643347427949,1.50208658,92.433,92.37,15.62]
[1643347428149,1.50208658,92.434,92.37,15.62]
[1643347428749,1.50208658,92.434,92.371,0.25]
[1643347428952,1.50208658,92.44,92.371,0.25]
[1643347429351,1.50208658,92.441,92.371,0.25]
[1643347429954,38.19521441,92.443,92.371,0.25]
[1643347430353,36.69312783,92.443,92.371,0.25]
[1643347435260,24.6186,92.442,92.371,0.25]
[1643347436961,36.69312783,92.443,92.371,0.25]
[1643347437561,36.69312783,92.443,92.37,15.62]
[1643347437762,109.3,92.441,92.35,15.62]
[1643347437963,7.50208658,92.433,92.34,15.62]
[1643347438163,1.50208658,92.421,92.34,15.62]
[1643347438363,1.50208658,92.418,92.34,15.62]
[1643347438561,1.50208658,92.419,92.34,15.62]
[1643347439162,1.50208658,92.422,92.34,15.62]
[1643347439562,1.50208658,92.423,92.34,15.62]
[1643347439765,1.50208658,92.421,92.34,15.62]
[1643347439961,1.50208658,92.424,92.34,15.62]
[1643347440164,1.50208658,92.423,92.34,15.62]
[1643347440462,1.50208658,92.421,92.34,15.62]
[1643347440663,1.50208658,92.42,92.34,15.62]
[1643347440862,1.50208658,92.419,92.34,15.62]
[1643347441263,1.50208658,92.418,92.34,15.62]
[1643347442062,1.50208658,92.416,92.34,15.62]
[1643347442265,49.27506127,92.415,92.34,15.62]
[1643347442463,6.0,92.406,92.34,15.62]
[1643347444468,1.50208658,92.411,92.34,15.62]
[1643347444668,1.50208658,92.41,92.34,15.62]
[1643347445070,25.94098658,92.412,92.34,15.62]
[1643347445269,1.50208658,92.407,92.34,15.62]
[1643347445470,1.50208658,92.408,92.34,15.62]
[1643347445671,1.50208658,92.407,92.34,15.62]
[1643347445870,1.50208658,92.406,92.34,15.62]
[1643347446070,1.50208658,92.402,92.34,15.62]
[1643347446770,1.50208658,92.401,92.34,15.62]
[1643347446970,1.50208658,92.394,92.34,15.62]
[1643347447169,1.50208658,92.388,92.34,15.62]
[1643347447374,49.71680549,92.387,92.34,15.62]
[1643347447572,1.50208658,92.386,92.34,15.62]
[1643347448174,1.50208658,92.382,92.34,15.62]
[1643347449274,1.50208658,92.38,92.34,15.62]
[1643347449978,1.50208658,92.381,92.34,15.62]
[1643347450400,1.50208658,92.38,92.34,15.62]
[1643347450998,48.21471891,92.387,92.34,15.62]
[1643347450999,1.50208658,92.378,92.34,15.62]
[1643347451499,1.50208658,92.374,92.31,15.62]
[1643347451699,1.50208658,92.366,92.31,15.62]
[1643347452099,1.50208658,92.367,92.31,15.62]
[1643347452299,1.50208658,92.363,92.31,15.62]
[1643347453300,1.50208658,92.362,92.31,15.62]
[1643347453500,1.50208658,92.366,92.31,15.62]
[1643347454402,1.50208658,92.365,92.31,15.12]
[1643347454904,109.3,92.356,92.31,15.12]
[1643347455501,1.50208658,92.355,92.31,15.12]
[1643347455900,109.3,92.356,92.31,15.12]
[1643347457301,109.3,92.356,92.28,15.62]
[1643347457503,134.0704,92.356,92.28,15.62]
[1643347457902,24.7704,92.356,92.28,15.62]
[1643347458104,43.44227183,92.357,92.281,2.40001259]
[1643347458305,43.44227183,92.357,92.29,6.0]
[1643347458502,43.44227183,92.357,92.3,15.62]
[1643347459103,43.44227183,92.357,92.3,17.77001259]
[1643347460003,43.44227183,92.357,92.31,6.0]
[1643347461307,1.50208658,92.374,92.31,6.0]
[1643347461508,1.50208658,92.376,92.31,6.0]
[1643347462311,42.90696793,92.375,92.31,6.0]
[1643347462508,1.50208658,92.376,92.32,15.62]
[1643347462710,1.50208658,92.381,92.32,15.62]
[1643347462913,22.8044,92.385,92.321,2.15001259]
[1643347463110,16.2536,92.42,92.321,2.15001259]
[1643347463111,1.50208658,92.39,92.321,2.15001259]
[1643347463311,1.50208658,92.39,92.331,6.0]
[1643347463510,1.50208658,92.409,92.34,15.62]
[1643347463913,1.50208658,92.422,92.35,6.0]
[1643347464111,1.50208658,92.426,92.36,15.62]
[1643347464312,24.7272,92.442,92.36,15.62]
[1643347464313,1.50208658,92.425,92.36,15.62]
[1643347464511,1.50208658,92.425,92.361,2.40818942]
[1643347465012,42.9874398,92.421,92.36,15.62]
[1643347465415,1.50208658,92.42,92.36,15.62]
[1643347465613,1.50208658,92.419,92.36,15.62]
[1643347465814,1.50208658,92.413,92.37,6.0]
[1643347466012,1.50208658,92.412,92.37,21.62]
[1643347466614,1.50208658,92.411,92.37,21.62]
[1643347467013,1.50208658,92.41,92.37,21.62]
[1643347467216,1.50208658,92.409,92.37,15.62]
[1643347467415,1.50208658,92.395,92.34,15.62]
[1643347467615,1.50208658,92.392,92.34,15.62]
[1643347467813,1.50208658,92.388,92.34,15.62]
[1643347468215,1.50208658,92.387,92.34,15.62]
[1643347468620,1.50208658,92.395,92.341,2.15818942]
[1643347468836,1.50208658,92.396,92.342,0.25]
[1643347469017,1.50208658,92.398,92.341,2.15818942]
[1643347469315,39.05446905,92.398,92.343,2.15818942]
[1643347472217,1.50208658,92.405,92.343,2.15818942]
[1643347472717,1.17759865,92.397,92.34,15.62]
[1643347473318,36.14057783,92.396,92.34,15.62]
[1643347474419,36.14057783,92.396,92.341,2.15833988]
[1643347474823,1.50208658,92.394,92.34,15.62]
[1643347475420,1.50208658,92.393,92.34,15.62]
[1643347477649,1.17587477,92.392,92.34,15.62]
[1643347478351,1.17587477,92.392,92.341,0.25]
[1643347478551,1.17587477,92.392,92.34,15.62]
[1643347481051,1.17587477,92.392,92.341,2.40833988]
[1643347481451,1.17587477,92.392,92.342,2.15833988]
[1643347481650,1.17587477,92.392,92.351,6.0]
[1643347481851,1.17587477,92.392,92.36,15.62]
[1643347482051,1.17587477,92.392,92.37,6.0]
[1643347482354,48.972,92.449,92.38,15.62]
[1643347482355,1.50208658,92.438,92.38,15.62]
[1643347482550,1.17552997,92.391,92.38,15.62]
[1643347483155,1.17552997,92.391,92.381,2.15833988]
[1643347483552,1.17552997,92.391,92.381,6.0]
[1643347483753,1.17552997,92.391,92.381,8.15833988]
[1643347484152,1.17552997,92.391,92.381,6.0]
[1643347484352,1.17552997,92.391,92.382,2.15833988]
[1643347484853,1.17552997,92.391,92.381,6.0]
[1643347486258,1.17552997,92.391,92.382,2.15833988]
[1643347487655,1.50208658,92.432,92.382,2.15833988]
[1643347487858,1.50208658,92.434,92.382,2.15833988]
[1643347488061,1.50208658,92.435,92.382,2.15833988]
[1643347488657,3.00219966,92.453,92.381,6.0]
[1643347488658,1.50208658,92.434,92.381,6.0]
[1643347488856,1.50208658,92.435,92.391,6.0]
[1643347489058,1.50208658,92.436,92.391,6.0]
[1643347489261,1.50208658,92.434,92.391,6.0]
[1643347490261,1.50208658,92.433,92.391,6.0]
[1643347490463,1.50208658,92.432,92.391,6.0]
[1643347490863,1.50208658,92.43,92.391,6.0]
[1643347491263,1.50208658,92.429,92.391,6.0]
[1643347491463,1.50208658,92.432,92.391,6.0]
[1643347491662,1.50208658,92.429,92.39,15.62]
[1643347491863,4.53428655,92.43,92.39,15.62]
[1643347492064,3.03219997,92.43,92.39,15.62]
[1643347494266,4.53428655,92.43,92.39,15.62]
[1643347494465,3.03219997,92.43,92.39,15.62]
[1643347495765,3.03219997,92.43,92.391,0.25]
[1643347495966,1.50208658,92.438,92.391,0.25]
[1643347496268,1.50208658,92.44,92.391,0.25]
[1643347496667,1.50208658,92.441,92.391,0.25]
[1643347496966,1.50208658,92.449,92.391,0.25]
[1643347497167,1.50208658,92.45,92.391,0.25]
[1643347498269,1.50208658,92.449,92.391,0.25]
[1643347498469,1.50208658,92.45,92.391,0.25]
[1643347498669,1.50208658,92.449,92.391,0.25]
[1643347498873,1.50208658,92.45,92.391,0.25]
[1643347500069,1.50208658,92.45,92.392,2.15833988]
[1643347500671,1.50208658,92.45,92.393,0.25]
[1643347501070,1.50208658,92.45,92.394,2.15833988]
[1643347501269,1.50208658,92.45,92.395,0.25]
[1643347501671,1.50208658,92.451,92.396,2.15833988]
[1643347501870,1.50208658,92.451,92.41,15.62]
[1643347502670,1.50208658,92.452,92.41,15.62]
[1643347502870,1.50208658,92.456,92.41,15.62]
[1643347503073,1.50208658,92.455,92.41,15.62]
[1643347503473,1.50208658,92.454,92.41,15.62]
[1643347504077,1.50208658,92.453,92.41,15.62]
[1643347505575,1.50208658,92.451,92.41,15.62]
[1643347506177,1.50208658,92.449,92.41,15.62]
[1643347506580,2.99234572,92.475,92.41,15.62]
[1643347506581,2.99234572,92.475,92.411,2.15833988]
[1643347506780,2.09,92.566,92.411,2.15833988]
[1643347506781,2.99234572,92.494,92.42,6.0]
[1643347506977,24.3831,92.519,92.43,210.82]
[1643347506978,2.99234572,92.502,92.43,210.82]
[1643347507275,2.99234572,92.512,92.431,0.25]
[1643347507478,4.50563106,92.538,92.431,0.25]
[1643347507479,2.99234572,92.52,92.44,6.0]
[1643347507679,1.74,92.607,92.45,210.82]
[1643347507680,2.99234572,92.526,92.45,210.82]
[1643347507878,2.99234572,92.543,92.46,195.2]
[1643347508078,2.99234572,92.547,92.47,15.62]
[1643347508279,2.99234572,92.558,92.471,0.25]
[1643347508484,2.99234572,92.559,92.48,6.0]
[1643347508680,3.00562007,92.569,92.49,15.62]
[1643347508883,2.99234572,92.588,92.491,0.25]
[1643347509083,2.99234572,92.588,92.5,6.0]
[1643347509282,2.49234572,92.594,92.51,15.62]
[1643347509479,49.1913,92.618,92.51,15.62]
[1643347509480,2.49234572,92.598,92.51,15.62]
[1643347509680,48.08149232,92.593,92.52,6.0]
[1643347509882,48.08149232,92.593,92.53,15.62]
[1643347511400,48.08149232,92.593,92.54,6.0]
[1643347511606,48.08149232,92.593,92.55,15.62]
[1643347512102,49.1913,92.618,92.55,15.62]
[1643347512503,6.0,92.608,92.55,7.32245833]
[1643347512701,6.0,92.608,92.53,15.62]
[1643347512900,5.9370536,92.607,92.46,211.2496]
[1643347513102,46.712973,92.606,92.49,15.62]
[1643347513301,2.98036218,92.605,92.49,15.62]
[1643347513703,109.3,92.604,92.49,15.62]
[1643347513902,142.23608404,92.604,92.49,15.62]
[1643347514204,35.91644622,92.603,92.49,15.62]
[1643347514400,16.2223,92.6,92.49,15.62]
[1643347514602,2.98036218,92.599,92.49,15.62]
[1643347514803,2.95669142,92.599,92.49,15.62]
[1643347515003,2.95669142,92.599,92.5,6.0]
[1643347515206,10.76583774,92.602,92.51,15.62]
[1643347515406,19.17469142,92.61,92.51,15.62]
[1643347515610,16.218,92.61,92.52,6.0]
[1643347515807,16.218,92.61,92.53,15.62]
[1643347516007,2.95669142,92.605,92.53,15.62]
[1643347517307,16.2201,92.6,92.53,15.62]
[1643347517710,2.95669142,92.599,92.53,15.62]
[1643347518512,6.0,92.589,92.53,15.62]
[1643347518710,16.2216,92.59,92.53,15.62]
[1643347519811,10.76583774,92.622,92.53,15.62]
[1643347519812,24.3696,92.606,92.531,2.40242182]
[1643347520011,24.3696,92.606,92.541,6.0]
[1643347520412,23.8696,92.606,92.542,0.25]
[1643347520612,24.362,92.618,92.55,6.0]
[1643347520815,24.362,92.618,92.56,15.62]
[1643347521413,4.50563106,92.692,92.56,15.62]
[1643347521414,18.85461043,92.655,92.56,15.62]
[1643347521617,49.6408,92.699,92.57,6.0]
[1643347521815,49.6408,92.699,92.58,210.82]
[1643347522019,49.6408,92.699,92.59,6.0]
[1643347522217,158.87331483,92.698,92.6,15.62]
[1643347522616,158.87331483,92.698,92.601,0.25]
[1643347522818,16.2046,92.69,92.61,6.0]
[1643347523015,6.0,92.688,92.62,15.62]
[1643347525622,49.6408,92.699,92.63,6.0]
[1643347525822,6.0,92.689,92.64,15.62]
[1643347526122,6.0,92.689,92.64,13.41952507]
[1643347526324,6.0,92.689,92.62,15.62]
[1643347526522,39.95751666,92.688,92.6,15.62]
[1643347526721,82.52098265,92.688,92.59,15.62]
[1643347526922,2.95669142,92.687,92.59,15.62]
[1643347527125,20.85435741,92.687,92.59,15.62]
[1643347527323,16.2067,92.67,92.59,15.62]
[1643347528627,2.95669142,92.699,92.6,6.0]
[1643347528845,47.3265,92.725,92.61,15.62]
[1643347529024,47.3265,92.725,92.63,195.2]
[1643347529224,47.3265,92.725,92.64,15.62]
[1643347529425,22.8039,92.748,92.64,21.62]
[1643347529634,22.8039,92.748,92.641,6.25]
[1643347529824,22.8039,92.748,92.641,8.40242182]
[1643347530024,22.8039,92.748,92.65,6.0]
[1643347530223,22.8039,92.748,92.66,15.62]
[1643347530624,6.0,92.738,92.67,6.0]
[1643347530826,6.0,92.738,92.68,15.62]
[1643347531627,16.1961,92.73,92.68,15.62]
[1643347531827,16.1961,92.73,92.64,15.62]
[1643347532229,2.95669142,92.729,92.64,15.62]
[1643347533227,16.2006,92.71,92.64,15.62]
[1643347533427,46.33364252,92.709,92.64,15.62]
[1643347533630,49.29033394,92.709,92.64,15.62]
[1643347534329,16.2033,92.69,92.64,15.62]
[1643347534528,49.29033394,92.709,92.64,15.62]
[1643347534930,46.33364252,92.709,92.64,15.62]
[1643347535129,23.4265,92.729,92.64,15.62]
[1643347535431,23.4265,92.729,92.64,17.77242182]
[1643347536131,49.15440052,92.728,92.64,17.77242182]
[1643347536652,109.3,92.727,92.64,17.77242182]
[1643347537553,16.1988,92.72,92.64,17.77242182]
[1643347537757,109.3,92.716,92.64,17.77242182]
[1643347538752,109.3,92.716,92.641,0.25]
[1643347538954,16.2006,92.71,92.64,17.77242182]
[1643347539156,109.3,92.709,92.64,15.62]
[1643347539360,2.95669142,92.715,92.64,15.62]
[1643347539556,23.3868,92.719,92.64,15.62]
[1643347539758,109.3,92.718,92.64,15.62]
[1643347540158,16.1996,92.71,92.64,15.62]
[1643347541060,16.2048,92.69,92.64,15.62]
[1643347541259,37.57362497,92.689,92.64,15.62]
[1643347541559,6.0,92.68,92.64,15.62]
[1643347542159,2.95669142,92.679,92.64,15.62]
[1643347542658,37.57362497,92.689,92.64,15.62]
[1643347542859,6.0,92.669,92.64,15.62]
[1643347543460,37.57362497,92.689,92.64,15.62]
[1643347544068,47.6842,92.699,92.64,15.62]
[1643347544263,6.0,92.689,92.64,15.62]
[1643347544866,47.6842,92.699,92.64,15.62]
[1643347546968,16.2009,92.71,92.64,15.62]
[1643347548669,2.9871468,92.709,92.64,15.62]
[1643347549470,16.2009,92.71,92.64,15.62]
[1643347549670,2.99155512,92.709,92.64,15.62]
[1643347549873,2.99155512,92.728,92.641,2.15242182]
[1643347550071,6.0,92.718,92.64,15.62]
[1643347550372,2.99155512,92.717,92.641,2.40242182]
[1643347551175,2.99155512,92.717,92.641,2.15242182]
[1643347551370,2.99155512,92.717,92.64,15.62]
[1643347551973,2.99155512,92.717,92.641,2.15242182]
[1643347552572,2.99155512,92.729,92.651,6.0]
[1643347552774,2.99155512,92.716,92.66,15.62]
[1643347552975,49.85787243,92.728,92.66,15.62]
[1643347553273,2.99155512,92.715,92.66,15.62]
[1643347553474,2.99155512,92.727,92.66,15.62]
[1643347555375,2.99155512,92.727,92.661,2.40242182]
[1643347555577,4.50563106,92.758,92.671,6.0]
[1643347555776,4.50563106,92.758,92.68,15.62]
[1643347555978,6.0,92.748,92.68,15.62]
[1643347556378,2.99155512,92.747,92.681,2.15242182]
[1643347557278,40.7232953,92.758,92.681,2.15242182]
[1643347557484,2.99155512,92.746,92.681,2.15242182]
[1643347557679,2.99155512,92.757,92.681,2.15242182]
[1643347557880,4.50563106,92.761,92.681,2.15242182]
[1643347558384,4.50563106,92.761,92.682,0.25]
[1643347558682,4.50563106,92.771,92.691,6.0]
[1643347558882,6.0,92.761,92.7,15.62]
[1643347559186,2.99155512,92.76,92.71,15.62]
[1643347559785,2.99155512,92.76,92.711,2.15242182]
[1643347560286,4.50563106,92.78,92.71,15.62]
[1643347560785,41.33723471,92.779,92.71,15.62]
[1643347560985,2.99155512,92.778,92.71,15.62]
[1643347561386,2.95669142,92.757,92.71,15.62]
[1643347561787,2.99155512,92.756,92.71,15.62]
[1643347561986,2.99155512,92.776,92.71,15.62]
[1643347562487,6.0,92.766,92.71,15.62]
[1643347562712,2.99155512,92.765,92.71,15.62]
[1643347563109,6.0,92.755,92.71,15.62]
[1643347563508,2.99155512,92.754,92.71,15.62]
[1643347563710,2.99155512,92.757,92.71,15.62]
[1643347565313,2.95669142,92.758,92.71,15.62]
[1643347565314,30.99334957,92.829,92.713,70.0]
[1643347565512,16.5693,92.834,92.744,0.04281733]
[1643347565713,68.5957,92.953,92.82,195.2]
[1643347566011,68.5957,92.953,92.85,195.2]
[1643347566012,5.97523594,92.923,92.85,195.2]
[1643347566212,41.48548819,92.922,92.86,15.62]
[1643347566411,41.03951536,92.922,92.86,21.62]
[1643347566611,41.03951536,92.922,92.861,6.0]
[1643347566812,41.03951536,92.922,92.87,195.2]
[1643347567012,41.03951536,92.922,92.88,15.62]
[1643347568413,6.0,92.912,92.88,15.62]
[1643347570313,5.0,92.912,92.88,15.62]
[1643347571116,41.03951536,92.922,92.88,15.62]
[1643347573525,41.03951536,92.922,92.87,195.2]
[1643347573726,41.03951536,92.922,92.795,16.3875]
[1643347573925,41.03951536,92.922,92.83,174.6]
[1643347574626,16.165,92.92,92.83,174.6]
[1643347575731,16.165,92.92,92.831,0.25]
[1643347575928,6.0,92.91,92.83,174.6]
[1643347576327,109.3,92.909,92.802,20.15039594]
[1643347576536,111.9,92.899,92.716,24.7927]
[1643347576730,147.2856,92.898,92.73,12.93]
[1643347576927,74.818,92.897,92.74,12.93]
[1643347577131,109.3,92.896,92.75,12.93]
[1643347577326,144.31126458,92.896,92.75,12.93]
[1643347577527,0.84582952,92.866,92.751,48.91129312]
[1643347577928,109.3,92.864,92.75,12.93]
[1643347578128,16.1808,92.84,92.75,12.93]
[1643347578333,109.3,92.839,92.72,12.93]
[1643347578528,183.42859142,92.839,92.602,5.0]
[1643347578728,195.59438237,92.839,92.69,12.93]
[1643347578931,195.59438237,92.839,92.603,98.6418]
[1643347578932,0.30215945,92.825,92.691,36.19719607]
[1643347579129,12.93,92.83,92.691,36.19719607]
[1643347579330,109.3,92.837,92.691,36.19719607]
[1643347579536,16.1848,92.81,92.691,36.19719607]
[1643347579729,16.1848,92.81,92.692,2.16052227]
[1643347580130,16.1848,92.81,92.693,0.25]
[1643347580936,16.1848,92.81,92.694,2.16052227]
[1643347581357,16.1848,92.81,92.705,38.31724644]
[1643347581535,16.1848,92.81,92.71,12.93]
[1643347582032,16.1848,92.81,92.711,2.41052227]
[1643347582432,16.1848,92.81,92.712,2.16052227]
[1643347583031,16.1848,92.81,92.71,12.93]
[1643347583232,16.1848,92.81,92.711,0.25]
[1643347587339,16.1848,92.81,92.71,12.93]
[1643347588444,109.3,92.809,92.71,12.93]
[1643347588646,109.3,92.809,92.711,0.25]
[1643347589261,16.1848,92.81,92.711,0.25]
[1643347589464,12.93,92.85,92.711,0.25]
[1643347589662,24.4466,92.839,92.72,6.0]
[1643347589862,124.9934,92.895,92.73,12.93]
[1643347590061,124.9934,92.895,92.74,6.0]
[1643347590261,124.9934,92.895,92.75,12.93]